[Event "*** Titled Tuesday 3|2 Blitz"]
[Site "Chess.com"]
[Date "2015.12.01"]
[Round "3"]
[White "Gabrinsky"]
[Black "yopino"]
[Result "0-1"]
[WhiteElo "2339"]
[BlackElo "2225"]
[TimeControl "180+2"]
[EndTime "17:33:58 PST"]
[Termination "yopino won by resignation"]

1. e4 {[%clk 0:03:01.9]} 1... c5 {[%clk 0:03:00.4]} 2. Nf3 {[%clk 0:03:02.8]}
2... g6 {[%clk 0:02:59.6]} 3. c3 {[%clk 0:03:03.3]} 3... Bg7 {[%clk 0:02:59.1]}
4. Bd3 {[%clk 0:03:03.6]} 4... Nc6 {[%clk 0:02:56.7]} 5. O-O {[%clk 0:03:04.6]}
5... d6 {[%clk 0:02:56.2]} 6. h3 {[%clk 0:03:05.2]} 6... Nf6 {[%clk 0:02:57.2]}
7. Re1 {[%clk 0:03:06.4]} 7... Nd7 {[%clk 0:02:53.4]} 8. Bc2 {[%clk 0:03:07.6]}
8... e5 {[%clk 0:02:47.6]} 9. d3 {[%clk 0:03:06.5]} 9... O-O {[%clk 0:02:47.7]}
10. Nbd2 {[%clk 0:03:07.6]} 10... b5 {[%clk 0:02:43.5]} 11. Nf1 {[%clk
0:03:08.1]} 11... Rb8 {[%clk 0:02:42.5]} 12. a4 {[%clk 0:03:07.1]} 12... b4
{[%clk 0:02:42.8]} 13. Bg5 {[%clk 0:03:01.4]} 13... Qc7 {[%clk 0:02:19.5]} 14.
Ne3 {[%clk 0:03:01.1]} 14... f6 {[%clk 0:02:10.2]} 15. Nd5 {[%clk 0:03:01.8]}
15... Qd8 {[%clk 0:02:10]} 16. Bc1 {[%clk 0:02:55.6]} 16... a5 {[%clk
0:02:10.6]} 17. Bb3 {[%clk 0:02:53.9]} 17... Kh8 {[%clk 0:02:10.2]} 18. Bd2
{[%clk 0:02:50.5]} 18... Ne7 {[%clk 0:02:07.9]} 19. Ne3 {[%clk 0:02:47.7]} 19...
Nb6 {[%clk 0:02:07.3]} 20. Nc4 {[%clk 0:02:36.1]} 20... Nxc4 {[%clk 0:01:58.6]}
21. Bxc4 {[%clk 0:02:38]} 21... d5 {[%clk 0:01:59.7]} 22. Ba2 {[%clk 0:02:31.7]}
22... Be6 {[%clk 0:01:56.2]} 23. cxb4 {[%clk 0:02:32.3]} 23... cxb4 {[%clk
0:01:49.1]} 24. Rc1 {[%clk 0:02:33.2]} 24... Qd7 {[%clk 0:01:50]} 25. Bb3 {[%clk
0:02:33.2]} 25... Rfc8 {[%clk 0:01:49.9]} 26. Qe2 {[%clk 0:02:33.7]} 26... d4
{[%clk 0:01:23.6]} 27. Qd1 {[%clk 0:02:29.7]} 27... Ng8 {[%clk 0:01:21.9]} 28.
Re2 {[%clk 0:02:27.2]} 28... Rxc1 {[%clk 0:01:17.5]} 29. Bxc1 {[%clk 0:02:29.1]}
29... Rc8 {[%clk 0:01:16.4]} 30. Nd2 {[%clk 0:02:21.9]} 30... Bxb3 {[%clk
0:01:09.2]} 31. Nxb3 {[%clk 0:02:19.4]} 31... Qxa4 {[%clk 0:01:09.6]} 32. Bd2
{[%clk 0:02:14.9]} 32... Qb5 {[%clk 0:01:06.4]} 33. Be1 {[%clk 0:02:15.5]} 33...
a4 {[%clk 0:00:58.4]} 34. Na1 {[%clk 0:02:11.2]} 34... b3 {[%clk 0:00:59]} 35.
Bd2 {[%clk 0:02:05.4]} 35... Qxd3 {[%clk 0:00:56.5]} 0-1

[Event "*** Titled Tuesday 3|2 Blitz"]
[Site "Chess.com"]
[Date "2015.12.01"]
[Round "3"]
[White "ntmh281"]
[Black "pKiLz5Rn9b"]
[Result "1-0"]
[WhiteElo "2167"]
[BlackElo "2424"]
[TimeControl "180+2"]
[EndTime "17:34:54 PST"]
[Termination "ntmh281 won by resignation"]

1. d4 {[%clk 0:03:01.9]} 1... e6 {[%clk 0:03:00.9]} 2. Nf3 {[%clk 0:03:02.9]}
2... Nf6 {[%clk 0:03:02.5]} 3. e3 {[%clk 0:03:02.8]} 3... c5 {[%clk 0:03:03]} 4.
Bd3 {[%clk 0:03:02.3]} 4... Be7 {[%clk 0:03:04.5]} 5. O-O {[%clk 0:03:03]} 5...
b6 {[%clk 0:03:06.1]} 6. b3 {[%clk 0:03:03.7]} 6... Bb7 {[%clk 0:03:07.2]} 7.
Nbd2 {[%clk 0:03:04.6]} 7... O-O {[%clk 0:03:08.4]} 8. Bb2 {[%clk 0:03:05.5]}
8... d5 {[%clk 0:03:09.3]} 9. Qe2 {[%clk 0:03:01.9]} 9... Nbd7 {[%clk
0:03:08.9]} 10. Ne5 {[%clk 0:03:02.2]} 10... Rc8 {[%clk 0:03:05.3]} 11. Rad1
{[%clk 0:02:54.3]} 11... Qc7 {[%clk 0:03:03.9]} 12. f4 {[%clk 0:02:54.7]} 12...
Ne4 {[%clk 0:02:50.4]} 13. Nxd7 {[%clk 0:02:47.9]} 13... Qxd7 {[%clk 0:02:51.9]}
14. Bxe4 {[%clk 0:02:39.4]} 14... dxe4 {[%clk 0:02:50.3]} 15. dxc5 {[%clk
0:02:39.4]} 15... Qc6 {[%clk 0:02:25.7]} 16. Nc4 {[%clk 0:02:22.2]} 16... Bxc5
{[%clk 0:02:22.5]} 17. Ne5 {[%clk 0:02:16.4]} 17... Qc7 {[%clk 0:02:05.6]} 18.
Rd7 {[%clk 0:02:16.4]} 18... Qb8 {[%clk 0:02:03.1]} 19. Rfd1 {[%clk 0:02:15.3]}
19... Rc7 {[%clk 0:01:54.5]} 20. Kf2 {[%clk 0:02:12.9]} 20... f5 {[%clk
0:01:06.2]} 21. Qh5 {[%clk 0:01:38.1]} 21... Be7 {[%clk 0:00:35.8]} 22. c4
{[%clk 0:01:21]} 22... Bc8 {[%clk 0:00:34.1]} 23. Nc6 {[%clk 0:01:12.6]} 23...
Rxd7 {[%clk 0:00:17.3]} 24. Nxb8 {[%clk 0:01:12]} 24... Rd2+ {[%clk 0:00:17.5]}
25. Rxd2 {[%clk 0:01:11.8]} 1-0

[Event "*** Titled Tuesday 3|2 Blitz"]
[Site "Chess.com"]
[Date "2015.12.01"]
[Round "3"]
[White "flubs"]
[Black "Carolina-moon"]
[Result "1-0"]
[WhiteElo "2184"]
[BlackElo "2045"]
[TimeControl "180+2"]
[EndTime "17:34:59 PST"]
[Termination "flubs won by resignation"]

1. d4 {[%clk 0:03:01.9]} 1... f5 {[%clk 0:03:00.1]} 2. c4 {[%clk 0:02:58.2]}
2... Nf6 {[%clk 0:03:01.3]} 3. g3 {[%clk 0:02:58.5]} 3... g6 {[%clk 0:03:02.7]}
4. Bg2 {[%clk 0:02:59.8]} 4... Bg7 {[%clk 0:03:04.4]} 5. Nf3 {[%clk 0:02:58.8]}
5... O-O {[%clk 0:03:06]} 6. O-O {[%clk 0:02:59.4]} 6... d6 {[%clk 0:03:07.7]}
7. Nc3 {[%clk 0:02:59.6]} 7... c6 {[%clk 0:03:09.4]} 8. b3 {[%clk 0:02:57.7]}
8... Qa5 {[%clk 0:03:08.2]} 9. Bd2 {[%clk 0:02:56.4]} 9... Qc7 {[%clk
0:03:04.7]} 10. Rc1 {[%clk 0:02:57]} 10... e5 {[%clk 0:03:05.4]} 11. dxe5 {[%clk
0:02:53.7]} 11... dxe5 {[%clk 0:03:06.2]} 12. e4 {[%clk 0:02:54.8]} 12... Na6
{[%clk 0:03:03.8]} 13. Re1 {[%clk 0:02:52]} 13... Re8 {[%clk 0:03:03.3]} 14. Qe2
{[%clk 0:02:51.3]} 14... Nc5 {[%clk 0:02:55.4]} 15. Nh4 {[%clk 0:02:39.9]} 15...
fxe4 {[%clk 0:02:52.9]} 16. Nxe4 {[%clk 0:02:37]} 16... Ncxe4 {[%clk 0:02:45.3]}
17. Bxe4 {[%clk 0:02:37.7]} 17... Bg4 {[%clk 0:02:41.1]} 18. f3 {[%clk
0:02:34.4]} 18... Nxe4 {[%clk 0:02:16.5]} 19. Qxe4 {[%clk 0:02:32.7]} 19... Be6
{[%clk 0:02:10.1]} 20. Bc3 {[%clk 0:02:31.9]} 20... Bf7 {[%clk 0:02:04.9]} 21.
Rcd1 {[%clk 0:02:20.4]} 21... Rad8 {[%clk 0:02:03]} 22. Rxd8 {[%clk 0:02:14.7]}
22... Qxd8 {[%clk 0:02:04]} 23. Ng2 {[%clk 0:02:05.9]} 23... Qb6+ {[%clk
0:01:40]} 24. Qe3 {[%clk 0:01:56.8]} 24... Qa6 {[%clk 0:01:20.7]} 25. Qf2 {[%clk
0:01:47.6]} 25... b5 {[%clk 0:01:07.7]} 26. cxb5 {[%clk 0:01:42.2]} 26... cxb5
{[%clk 0:01:08.7]} 27. Ne3 {[%clk 0:01:36.2]} 27... Qb7 {[%clk 0:01:08]} 28. Ng4
{[%clk 0:01:28.2]} 28... e4 {[%clk 0:01:01.6]} 29. Bxg7 {[%clk 0:01:25.7]} 29...
Kxg7 {[%clk 0:01:00.9]} 30. Qd4+ {[%clk 0:01:22.2]} 30... Kg8 {[%clk 0:00:51.2]}
31. Nf6+ {[%clk 0:01:20.9]} 31... Kf8 {[%clk 0:00:52.5]} 32. Nxh7+ {[%clk
0:01:11.6]} 32... Kg8 {[%clk 0:00:50.6]} 33. Nf6+ {[%clk 0:01:12.8]} 33... Kf8
{[%clk 0:00:51.8]} 34. Nxe8 {[%clk 0:01:11.5]} 34... Kxe8 {[%clk 0:00:51.3]} 35.
Rxe4+ {[%clk 0:01:10.1]} 1-0

[Event "*** Titled Tuesday 3|2 Blitz"]
[Site "Chess.com"]
[Date "2015.12.01"]
[Round "3"]
[White "the_drake"]
[Black "JustKid"]
[Result "1-0"]
[WhiteElo "2001"]
[BlackElo "2096"]
[TimeControl "180+2"]
[EndTime "17:35:05 PST"]
[Termination "the_drake won by checkmate"]

1. e4 {[%clk 0:03:00.2]} 1... d6 {[%clk 0:03:00.8]} 2. d4 {[%clk 0:02:59.8]}
2... Nf6 {[%clk 0:03:02.3]} 3. Bd3 {[%clk 0:03:00.1]} 3... e5 {[%clk 0:03:01.9]}
4. d5 {[%clk 0:02:59.6]} 4... c5 {[%clk 0:02:59.9]} 5. c4 {[%clk 0:02:59.8]}
5... Be7 {[%clk 0:03:00.3]} 6. Nc3 {[%clk 0:03:01.1]} 6... O-O {[%clk
0:03:01.9]} 7. Nge2 {[%clk 0:03:01.9]} 7... Ne8 {[%clk 0:03:03.4]} 8. O-O {[%clk
0:03:02.7]} 8... g6 {[%clk 0:03:05]} 9. Be3 {[%clk 0:03:01.8]} 9... Ng7 {[%clk
0:03:06.2]} 10. Qd2 {[%clk 0:02:59.6]} 10... f5 {[%clk 0:03:01.9]} 11. f4 {[%clk
0:03:00.4]} 11... Nd7 {[%clk 0:02:58]} 12. Rae1 {[%clk 0:02:58.5]} 12... a6
{[%clk 0:02:56.3]} 13. a3 {[%clk 0:02:56.8]} 13... fxe4 {[%clk 0:02:39.3]} 14.
Nxe4 {[%clk 0:02:53.3]} 14... Nf5 {[%clk 0:02:39.1]} 15. fxe5 {[%clk 0:02:43.3]}
15... Nxe5 {[%clk 0:02:35.4]} 16. N2g3 {[%clk 0:02:35.7]} 16... Nxe3 {[%clk
0:02:24.3]} 17. Qxe3 {[%clk 0:02:35.3]} 17... Bd7 {[%clk 0:02:09.1]} 18. b3
{[%clk 0:02:35.6]} 18... Qa5 {[%clk 0:02:04.8]} 19. Bb1 {[%clk 0:02:24.9]} 19...
b6 {[%clk 0:01:36.5]} 20. h3 {[%clk 0:02:20.1]} 20... Qxa3 {[%clk 0:01:35.4]}
21. Qh6 {[%clk 0:02:20.5]} 21... Rxf1+ {[%clk 0:01:32.3]} 22. Rxf1 {[%clk
0:02:19.5]} 22... Qxb3 {[%clk 0:01:12.9]} 23. Ng5 {[%clk 0:02:16.5]} 23... Bxg5
{[%clk 0:01:08.5]} 24. Qxg5 {[%clk 0:02:16.1]} 24... Qxc4 {[%clk 0:01:03.9]} 25.
Nh5 {[%clk 0:02:08.1]} 25... Qd4+ {[%clk 0:00:37]} 26. Kh1 {[%clk 0:02:05.2]}
26... Nf7 {[%clk 0:00:33.5]} 27. Qe7 {[%clk 0:01:56.6]} 27... Bf5 {[%clk
0:00:26.8]} 28. Bxf5 {[%clk 0:01:53.6]} 28... gxf5 {[%clk 0:00:28.7]} 29. Rxf5
{[%clk 0:01:43.7]} 29... Rf8 {[%clk 0:00:29.4]} 30. Nf6+ {[%clk 0:01:40]} 30...
Kg7 {[%clk 0:00:30.5]} 31. Rg5+ {[%clk 0:01:35.9]} 31... Kh6 {[%clk 0:00:26.7]}
32. Ng4+ {[%clk 0:01:35.8]} 32... Qxg4 {[%clk 0:00:23.8]} 33. Qf6# {[%clk
0:01:32]} 1-0

[Event "*** Titled Tuesday 3|2 Blitz"]
[Site "Chess.com"]
[Date "2015.12.01"]
[Round "3"]
[White "Ar4uha"]
[Black "Fh2411"]
[Result "0-1"]
[WhiteElo "2348"]
[BlackElo "2303"]
[TimeControl "180+2"]
[EndTime "17:35:53 PST"]
[Termination "Fh2411 won by checkmate"]

1. e4 {[%clk 0:02:54]} 1... e5 {[%clk 0:02:59.7]} 2. Nf3 {[%clk 0:02:53.9]} 2...
Nc6 {[%clk 0:03:00.7]} 3. d4 {[%clk 0:02:55.4]} 3... exd4 {[%clk 0:03:01.3]} 4.
Nxd4 {[%clk 0:02:57.3]} 4... Bc5 {[%clk 0:03:01.8]} 5. Nb3 {[%clk 0:02:57.2]}
5... Bb6 {[%clk 0:02:59.9]} 6. Nc3 {[%clk 0:02:58.7]} 6... d6 {[%clk 0:03:00.5]}
7. Qe2 {[%clk 0:02:58.5]} 7... Nf6 {[%clk 0:02:56.9]} 8. Bg5 {[%clk 0:02:59.4]}
8... h6 {[%clk 0:02:52.1]} 9. Bh4 {[%clk 0:03:00.1]} 9... Be6 {[%clk 0:02:51.7]}
10. O-O-O {[%clk 0:03:00.4]} 10... Qe7 {[%clk 0:02:46.7]} 11. Kb1 {[%clk
0:02:59.6]} 11... O-O-O {[%clk 0:02:42]} 12. f3 {[%clk 0:03:00.9]} 12... g5
{[%clk 0:02:35.9]} 13. Bf2 {[%clk 0:03:01.6]} 13... Nh5 {[%clk 0:02:22.1]} 14.
Bxb6 {[%clk 0:03:01.9]} 14... axb6 {[%clk 0:02:21.2]} 15. Qb5 {[%clk 0:03:03.3]}
15... Nf4 {[%clk 0:02:13.3]} 16. Qa4 {[%clk 0:03:03.1]} 16... Kb8 {[%clk
0:01:20.6]} 17. Nb5 {[%clk 0:02:55.5]} 17... Bd7 {[%clk 0:01:17.6]} 18. N3d4
{[%clk 0:02:51.1]} 18... Ne6 {[%clk 0:01:08.6]} 19. Nf5 {[%clk 0:02:42.3]} 19...
Qf6 {[%clk 0:01:05.6]} 20. Bc4 {[%clk 0:02:41.3]} 20... Nc5 {[%clk 0:01:03.9]}
21. Qa3 {[%clk 0:02:42.4]} 21... Bxf5 {[%clk 0:00:39.2]} 22. exf5 {[%clk
0:02:44.3]} 22... Qxf5 {[%clk 0:00:36]} 23. Bd5 {[%clk 0:02:45.8]} 23... Na6
{[%clk 0:00:31.9]} 24. Bxc6 {[%clk 0:02:41.8]} 24... bxc6 {[%clk 0:00:31.4]} 25.
Nd4 {[%clk 0:02:42.5]} 25... Qc8 {[%clk 0:00:20.6]} 26. Nxc6+ {[%clk 0:02:43.8]}
26... Kb7 {[%clk 0:00:22]} 27. Nxd8+ {[%clk 0:02:45.3]} 27... Rxd8 {[%clk
0:00:22.4]} 28. Qb3 {[%clk 0:02:45.9]} 28... Qd7 {[%clk 0:00:22.3]} 29. Rhe1
{[%clk 0:02:44.6]} 29... Nc5 {[%clk 0:00:22.4]} 30. Qd5+ {[%clk 0:02:45.6]}
30... c6 {[%clk 0:00:23.9]} 31. b3 {[%clk 0:02:46.1]} 31... cxd5 {[%clk
0:00:21.4]} 32. Rxd5 {[%clk 0:02:48]} 32... Ne6 {[%clk 0:00:22]} 33. Red1 {[%clk
0:02:48.5]} 33... Qc6 {[%clk 0:00:23.1]} 34. g3 {[%clk 0:02:49.3]} 34... Rd7
{[%clk 0:00:23.1]} 35. Kb2 {[%clk 0:02:50]} 35... Nc7 {[%clk 0:00:24.6]} 36.
R5d2 {[%clk 0:02:50.2]} 36... d5 {[%clk 0:00:26]} 37. c4 {[%clk 0:02:50.7]}
37... Qf6+ {[%clk 0:00:23.4]} 38. Ka3 {[%clk 0:02:50]} 38... d4 {[%clk
0:00:24.8]} 39. Kb2 {[%clk 0:02:49.8]} 39... Qxf3 {[%clk 0:00:24.8]} 40. Rd3
{[%clk 0:02:49.8]} 40... Qf6 {[%clk 0:00:24.4]} 41. R1d2 {[%clk 0:02:51.7]}
41... Ne6 {[%clk 0:00:25.5]} 42. b4 {[%clk 0:02:52.9]} 42... Qe5 {[%clk
0:00:26.7]} 43. Kb3 {[%clk 0:02:54.1]} 43... f5 {[%clk 0:00:27.8]} 44. a4 {[%clk
0:02:54.4]} 44... f4 {[%clk 0:00:29]} 45. gxf4 {[%clk 0:02:55.3]} 45... Nxf4
{[%clk 0:00:29.6]} 46. Rf3 {[%clk 0:02:55.3]} 46... d3 {[%clk 0:00:30]} 47. Rf1
{[%clk 0:02:56.6]} 47... Qe3 {[%clk 0:00:30.7]} 48. Rfd1 {[%clk 0:02:57.3]}
48... Ne2 {[%clk 0:00:30]} 49. a5 {[%clk 0:02:54.7]} 49... Nd4+ {[%clk
0:00:26.3]} 50. Kc3 {[%clk 0:02:55.3]} 50... Nf3 {[%clk 0:00:22.6]} 51. Ra2
{[%clk 0:02:53.3]} 51... Qe5+ {[%clk 0:00:21.3]} 52. Kb3 {[%clk 0:02:54.5]}
52... Nd4+ {[%clk 0:00:22.3]} 53. Ka3 {[%clk 0:02:51.7]} 53... bxa5 {[%clk
0:00:22.7]} 54. bxa5 {[%clk 0:02:53.2]} 54... Nc6 {[%clk 0:00:21]} 55. Rb1+
{[%clk 0:02:50.9]} 55... Ka7 {[%clk 0:00:21.5]} 56. Rb5 {[%clk 0:02:47.1]} 56...
Qc3+ {[%clk 0:00:22]} 57. Rb3 {[%clk 0:02:48.3]} 57... Qc1+ {[%clk 0:00:21.4]}
58. Ka4 {[%clk 0:02:49]} 58... Qxc4+ {[%clk 0:00:21.9]} 59. Ka3 {[%clk 0:02:49]}
59... d2 {[%clk 0:00:23.4]} 60. Rb1 {[%clk 0:02:49.8]} 60... Rd3+ {[%clk
0:00:22.4]} 61. Kb2 {[%clk 0:02:50.1]} 61... Qc3# {[%clk 0:00:21.5]} 0-1

[Event "*** Titled Tuesday 3|2 Blitz"]
[Site "Chess.com"]
[Date "2015.12.01"]
[Round "3"]
[White "Iball95"]
[Black "Cararay"]
[Result "1-0"]
[WhiteElo "2423"]
[BlackElo "2217"]
[TimeControl "180+2"]
[EndTime "17:36:57 PST"]
[Termination "Iball95 won on time"]

1. e4 {[%clk 0:03:00.2]} 1... c6 {[%clk 0:02:47.9]} 2. c4 {[%clk 0:02:59]} 2...
d5 {[%clk 0:02:48.4]} 3. cxd5 {[%clk 0:02:59.8]} 3... cxd5 {[%clk 0:02:49.2]} 4.
exd5 {[%clk 0:03:00.9]} 4... Nf6 {[%clk 0:02:49.7]} 5. Nc3 {[%clk 0:03:02]} 5...
Nxd5 {[%clk 0:02:50.1]} 6. Nf3 {[%clk 0:03:02.5]} 6... e6 {[%clk 0:02:50.8]} 7.
d4 {[%clk 0:02:55.7]} 7... Be7 {[%clk 0:02:46.6]} 8. Bd3 {[%clk 0:02:51.8]} 8...
O-O {[%clk 0:02:46.7]} 9. O-O {[%clk 0:02:52.3]} 9... Nc6 {[%clk 0:02:47]} 10.
a3 {[%clk 0:02:50.2]} 10... Nxc3 {[%clk 0:02:41.6]} 11. bxc3 {[%clk 0:02:50.6]}
11... b6 {[%clk 0:02:39.4]} 12. a4 {[%clk 0:02:39.9]} 12... Bb7 {[%clk
0:02:39.3]} 13. Re1 {[%clk 0:02:40.4]} 13... Rc8 {[%clk 0:02:38.7]} 14. Qe2
{[%clk 0:02:36.8]} 14... Na5 {[%clk 0:02:36.8]} 15. Ne5 {[%clk 0:01:36.9]} 15...
Qd5 {[%clk 0:01:39.1]} 16. Qg4 {[%clk 0:01:23.5]} 16... g6 {[%clk 0:01:27.4]}
17. c4 {[%clk 0:01:15.7]} 17... Qd6 {[%clk 0:01:22]} 18. Bh6 {[%clk 0:01:01.7]}
18... Nb3 {[%clk 0:00:54.8]} 19. Nxg6 {[%clk 0:00:49.1]} 19... fxg6 {[%clk
0:00:34.9]} 20. Bxg6 {[%clk 0:00:47.7]} 20... Qxd4 {[%clk 0:00:34.8]} 21. Qxe6+
{[%clk 0:00:42.3]} 21... Kh8 {[%clk 0:00:28.4]} 22. Qxe7 {[%clk 0:00:41.4]}
22... hxg6 {[%clk 0:00:22.1]} 23. Bxf8 {[%clk 0:00:26.4]} 23... Nxa1 {[%clk
0:00:22.2]} 24. h3 {[%clk 0:00:19.3]} 24... Nc2 {[%clk 0:00:19.7]} 25. Re4
{[%clk 0:00:19.7]} 25... Bxe4 {[%clk 0:00:15.8]} 26. Bh6 {[%clk 0:00:18.5]}
26... Kg8 {[%clk 0:00:08.4]} 27. Qe6+ {[%clk 0:00:17.6]} 27... Kh7 {[%clk
0:00:08.1]} 28. Qxc8 {[%clk 0:00:12.3]} 28... Kxh6 {[%clk 0:00:03]} 29. Qf8+
{[%clk 0:00:12.9]} 1-0

[Event "*** Titled Tuesday 3|2 Blitz"]
[Site "Chess.com"]
[Date "2015.12.01"]
[Round "3"]
[White "Assasin14"]
[Black "cheese111"]
[Result "0-1"]
[WhiteElo "1892"]
[BlackElo "2203"]
[TimeControl "180+2"]
[EndTime "17:36:58 PST"]
[Termination "cheese111 won by resignation"]

1. e4 {[%clk 0:03:01.9]} 1... e5 {[%clk 0:02:59.7]} 2. Nf3 {[%clk 0:02:58.7]}
2... Nc6 {[%clk 0:03:01]} 3. Bb5 {[%clk 0:02:59.1]} 3... a6 {[%clk 0:03:02.1]}
4. Ba4 {[%clk 0:02:59.6]} 4... Nf6 {[%clk 0:03:02.8]} 5. Qe2 {[%clk 0:03:00.3]}
5... b5 {[%clk 0:02:57.5]} 6. Bb3 {[%clk 0:03:01]} 6... Be7 {[%clk 0:02:58.3]}
7. O-O {[%clk 0:03:01.1]} 7... O-O {[%clk 0:02:58.7]} 8. c3 {[%clk 0:02:57]}
8... d6 {[%clk 0:02:59.6]} 9. Rd1 {[%clk 0:02:55.6]} 9... Na5 {[%clk 0:02:59.6]}
10. Bc2 {[%clk 0:02:56.7]} 10... c5 {[%clk 0:03:00.1]} 11. a4 {[%clk 0:02:50.1]}
11... Bd7 {[%clk 0:02:46.1]} 12. d4 {[%clk 0:02:47.1]} 12... Qc7 {[%clk
0:02:43.6]} 13. Bg5 {[%clk 0:02:29.5]} 13... h6 {[%clk 0:02:00]} 14. Bh4 {[%clk
0:01:37]} 14... Be6 {[%clk 0:01:16.3]} 15. Bg3 {[%clk 0:00:46.6]} 15... Nh5
{[%clk 0:01:09.7]} 16. d5 {[%clk 0:00:17.7]} 16... Bd7 {[%clk 0:01:05]} 17. Na3
{[%clk 0:00:18.3]} 17... bxa4 {[%clk 0:00:59.6]} 18. Nc4 {[%clk 0:00:18.6]}
18... Nb3 {[%clk 0:00:56.7]} 19. Bxb3 {[%clk 0:00:16.3]} 19... axb3 {[%clk
0:00:58.6]} 20. Nfd2 {[%clk 0:00:17]} 20... Nxg3 {[%clk 0:00:56.6]} 21. hxg3
{[%clk 0:00:17.7]} 21... Rfb8 {[%clk 0:00:50.3]} 22. Qf3 {[%clk 0:00:17.9]}
22... a5 {[%clk 0:00:45.6]} 23. Ne3 {[%clk 0:00:17.2]} 23... a4 {[%clk
0:00:41.9]} 24. Ra3 {[%clk 0:00:18.1]} 24... Bf8 {[%clk 0:00:35]} 25. c4 {[%clk
0:00:19.3]} 25... Qb6 {[%clk 0:00:28.6]} 26. g4 {[%clk 0:00:20]} 26... Qd8
{[%clk 0:00:25.9]} 27. Ndf1 {[%clk 0:00:19.2]} 27... Qg5 {[%clk 0:00:24.7]} 28.
Ng3 {[%clk 0:00:20.1]} 28... Qf4 {[%clk 0:00:25.7]} 29. Ngf5 {[%clk 0:00:17.1]}
29... Qxf3 {[%clk 0:00:25.5]} 30. gxf3 {[%clk 0:00:18.4]} 30... g6 {[%clk
0:00:26.7]} 31. Ng3 {[%clk 0:00:19.1]} 31... Be7 {[%clk 0:00:27.6]} 32. Rda1
{[%clk 0:00:19.8]} 32... Bd8 {[%clk 0:00:26.8]} 33. Kg2 {[%clk 0:00:21.2]} 33...
Ba5 {[%clk 0:00:27.1]} 34. Rh1 {[%clk 0:00:21.7]} 34... Kg7 {[%clk 0:00:26.8]}
35. Raa1 {[%clk 0:00:20.3]} 35... Bb4 {[%clk 0:00:26.6]} 36. Rh2 {[%clk
0:00:21.6]} 36... a3 {[%clk 0:00:27.3]} 37. bxa3 {[%clk 0:00:23]} 37... Rxa3
{[%clk 0:00:28]} 38. Rhh1 {[%clk 0:00:23.8]} 38... Rxa1 {[%clk 0:00:27.1]} 39.
Rxa1 {[%clk 0:00:25.7]} 39... Bc3 {[%clk 0:00:28.5]} 40. Rb1 {[%clk 0:00:26.8]}
40... Bd4 {[%clk 0:00:28.7]} 41. Nd1 {[%clk 0:00:27.8]} 41... b2 {[%clk
0:00:23.2]} 42. Ne3 {[%clk 0:00:28.9]} 42... Ba4 {[%clk 0:00:22.1]} 43. Kf1
{[%clk 0:00:26.8]} 43... Bxe3 {[%clk 0:00:23]} 44. fxe3 {[%clk 0:00:27.9]} 44...
Bc2 {[%clk 0:00:23.6]} 45. Rxb2 {[%clk 0:00:29.4]} 45... Rxb2 {[%clk 0:00:25]}
46. Ne2 {[%clk 0:00:29.6]} 46... Bd3 {[%clk 0:00:25.8]} 0-1

[Event "*** Titled Tuesday 3|2 Blitz"]
[Site "Chess.com"]
[Date "2015.12.01"]
[Round "3"]
[White "alex_zapata"]
[Black "Colombiano07"]
[Result "0-1"]
[WhiteElo "2159"]
[BlackElo "2116"]
[TimeControl "180+2"]
[EndTime "17:38:12 PST"]
[Termination "Colombiano07 won by resignation"]

1. e4 {[%clk 0:03:01.9]} 1... g6 {[%clk 0:03:00.8]} 2. d4 {[%clk 0:03:01.8]}
2... Bg7 {[%clk 0:03:02.1]} 3. Nc3 {[%clk 0:03:03.3]} 3... c5 {[%clk 0:03:03.6]}
4. Be3 {[%clk 0:03:02]} 4... Qa5 {[%clk 0:03:02.1]} 5. Nf3 {[%clk 0:03:01.3]}
5... Nf6 {[%clk 0:03:02.5]} 6. Qd2 {[%clk 0:02:51.3]} 6... Ng4 {[%clk
0:03:03.1]} 7. Be2 {[%clk 0:02:30.4]} 7... Nxe3 {[%clk 0:02:44]} 8. fxe3 {[%clk
0:02:32.3]} 8... O-O {[%clk 0:02:42.4]} 9. h4 {[%clk 0:02:29.5]} 9... Nc6 {[%clk
0:02:43.1]} 10. h5 {[%clk 0:02:27.5]} 10... d6 {[%clk 0:02:44]} 11. hxg6 {[%clk
0:02:24.7]} 11... hxg6 {[%clk 0:02:25.4]} 12. O-O-O {[%clk 0:02:25.1]} 12... Bg4
{[%clk 0:02:24.2]} 13. Kb1 {[%clk 0:01:31.4]} 13... Bxf3 {[%clk 0:02:06.4]} 14.
gxf3 {[%clk 0:01:31.7]} 14... cxd4 {[%clk 0:02:05.9]} 15. exd4 {[%clk
0:01:33.6]} 15... Nxd4 {[%clk 0:02:02.7]} 16. Nd5 {[%clk 0:01:20.3]} 16... Qd8
{[%clk 0:02:03.4]} 17. f4 {[%clk 0:01:13.2]} 17... Nxe2 {[%clk 0:01:43]} 18.
Qxe2 {[%clk 0:01:13.3]} 18... e6 {[%clk 0:01:43.7]} 19. Ne3 {[%clk 0:01:13.4]}
19... Qb6 {[%clk 0:01:41.2]} 20. Nc4 {[%clk 0:01:10.2]} 20... Qb5 {[%clk
0:01:36.1]} 21. a4 {[%clk 0:00:54.4]} 21... Qxa4 {[%clk 0:01:32.5]} 22. Nxd6
{[%clk 0:00:52]} 22... Rfd8 {[%clk 0:01:24.8]} 23. e5 {[%clk 0:00:51]} 23...
Qxf4 {[%clk 0:01:25]} 24. Rdf1 {[%clk 0:00:40.8]} 24... Qxe5 {[%clk 0:01:25.3]}
25. Qxe5 {[%clk 0:00:42.2]} 25... Bxe5 {[%clk 0:01:27]} 26. Nxf7 {[%clk
0:00:43.9]} 26... Rd5 {[%clk 0:01:21.3]} 27. Rhg1 {[%clk 0:00:25.8]} 27... Kg7
{[%clk 0:01:18.9]} 28. Ng5 {[%clk 0:00:26.6]} 28... Re8 {[%clk 0:01:04.4]} 29.
Rf7+ {[%clk 0:00:25.8]} 29... Kg8 {[%clk 0:01:04.9]} 30. Rxb7 {[%clk 0:00:24.9]}
30... Bd4 {[%clk 0:01:03.8]} 31. Rg2 {[%clk 0:00:19.7]} 31... Rf5 {[%clk
0:00:53.4]} 32. Ne4 {[%clk 0:00:19.8]} 32... Rf7 {[%clk 0:00:24.1]} 33. Rxg6+
{[%clk 0:00:20.3]} 33... Kf8 {[%clk 0:00:24.9]} 34. Rxf7+ {[%clk 0:00:19.2]}
34... Kxf7 {[%clk 0:00:26.8]} 35. Rh6 {[%clk 0:00:20.2]} 35... Bg7 {[%clk
0:00:20.6]} 36. Rh5 {[%clk 0:00:19.1]} 36... Rd8 {[%clk 0:00:19.6]} 37. Ra5
{[%clk 0:00:19]} 37... Rd7 {[%clk 0:00:20]} 38. c3 {[%clk 0:00:19.8]} 38... Kg6
{[%clk 0:00:18.9]} 39. Ra6 {[%clk 0:00:19.7]} 39... Kf5 {[%clk 0:00:19]} 40.
Nd6+ {[%clk 0:00:20.6]} 40... Kf4 {[%clk 0:00:18.7]} 41. Nb5 {[%clk 0:00:17.6]}
41... e5 {[%clk 0:00:18.8]} 42. Nxa7 {[%clk 0:00:15]} 42... e4 {[%clk
0:00:19.1]} 43. Nc6 {[%clk 0:00:14.7]} 43... e3 {[%clk 0:00:19.1]} 44. Nb4
{[%clk 0:00:13.8]} 44... e2 {[%clk 0:00:18]} 45. Nc2 {[%clk 0:00:14.8]} 45...
Rd1+ {[%clk 0:00:17.5]} 46. Ka2 {[%clk 0:00:16.3]} 46... Rd2 {[%clk 0:00:18.7]}
47. Ne1 {[%clk 0:00:15.7]} 47... Rd1 {[%clk 0:00:19.6]} 48. Nc2 {[%clk
0:00:15.9]} 48... Rc1 {[%clk 0:00:20.8]} 49. Ra4+ {[%clk 0:00:14.3]} 49... Kf3
{[%clk 0:00:19.6]} 50. Ra7 {[%clk 0:00:06.3]} 50... Rxc2 {[%clk 0:00:19.6]} 51.
Rf7+ {[%clk 0:00:07.2]} 51... Ke3 {[%clk 0:00:19.5]} 52. Re7+ {[%clk 0:00:08.3]}
52... Kd2 {[%clk 0:00:20.5]} 53. Rd7+ {[%clk 0:00:08.3]} 53... Kc1 {[%clk
0:00:21.5]} 54. Kb3 {[%clk 0:00:07.4]} 54... Rxb2+ {[%clk 0:00:22]} 55. Kc4
{[%clk 0:00:09]} 55... e1=Q {[%clk 0:00:22.2]} 0-1